[Event "13 Open de Quenza"]
[Site "Quenza, France"]
[Date "2024.07.07"]
[Round "6.7"]
[White "Daulet, Alikhan"]
[Black "Travadon, Loic"]
[Result "0-1"]
[TimeControl "5min+3s/move"]
[WhiteElo "1922"]
[BlackElo "2458"]

1. d4 {[%clk 00:05:03]} {[%emt 00:00:02]} Nf6 {[%clk 00:05:03]} {[%emt
00:00:02]} 2. c4 {[%clk 00:05:03]} {[%emt 00:00:01]} c5 {[%clk 00:05:03]}
{[%emt 00:00:01]} 3. d5 {[%clk 00:05:03]} {[%emt 00:00:01]} g6 {[%clk
00:05:03]} {[%emt 00:00:01]} 4. Nc3 {[%clk 00:05:03]} {[%emt 00:00:02]} Bg7
{[%clk 00:05:03]} 5. e4 {[%clk 00:05:01]} {[%emt 00:00:06]} d6 {[%clk
00:05:03]} {[%emt 00:00:01]} 6. Nf3 {[%clk 00:05:01]} {[%emt 00:00:03]} O-O
{[%clk 00:05:03]} {[%emt 00:00:02]} 7. Be2 {[%clk 00:05:01]} {[%emt 00:00:01]}
e6 {[%clk 00:05:03]} {[%emt 00:00:02]} 8. Be3 {[%clk 00:04:43]} {[%emt
00:00:20]} Na6 {[%clk 00:04:55]} {[%emt 00:00:12]} 9. O-O {[%clk 00:04:41]}
{[%emt 00:00:05]} Ng4 {[%clk 00:04:33]} {[%emt 00:00:25]} 10. Bd2 {[%clk
00:04:41]} {[%emt 00:00:03]} e5 {[%clk 00:04:30]} {[%emt 00:00:07]} 11. Ne1
{[%clk 00:04:32]} {[%emt 00:00:11]} f5 {[%clk 00:04:29]} {[%emt 00:00:04]} 12.
Nd3 {[%clk 00:04:04]} {[%emt 00:00:31]} Nf6 {[%clk 00:04:29]} {[%emt 00:00:03]}
13. f3 {[%clk 00:04:04]} {[%emt 00:00:02]} f4 {[%clk 00:04:29]} {[%emt
00:00:02]} 14. a3 {[%clk 00:04:04]} {[%emt 00:00:01]} g5 {[%clk 00:04:29]} 15.
Be1 {[%clk 00:03:49]} {[%emt 00:00:19]} Rf7 {[%clk 00:04:29]} {[%emt 00:00:02]}
16. b4 {[%clk 00:03:49]} {[%emt 00:00:01]} b6 {[%clk 00:04:29]} {[%emt
00:00:01]} 17. Bd2 {[%clk 00:02:09]} {[%emt 00:01:42]} Bf8 {[%clk 00:04:29]}
{[%emt 00:00:03]} 18. Kf2 {[%clk 00:02:09]} {[%emt 00:00:02]} g4 {[%clk
00:04:28]} {[%emt 00:00:04]} 19. Ke1 {[%clk 00:01:55]} {[%emt 00:00:17]} Rg7
{[%clk 00:04:26]} {[%emt 00:00:04]} 20. Qa4 {[%clk 00:01:55]} {[%emt 00:00:03]}
Nc7 {[%clk 00:04:26]} {[%emt 00:00:04]} 21. Kd1 {[%clk 00:01:55]} {[%emt
00:00:02]} Bd7 {[%clk 00:04:26]} {[%emt 00:00:01]} 22. Qb3 {[%clk 00:01:55]}
gxf3 {[%clk 00:04:23]} {[%emt 00:00:06]} 23. Bxf3 {[%clk 00:01:51]} {[%emt
00:00:07]} Ng4 {[%clk 00:04:23]} {[%emt 00:00:03]} 24. Bxg4 {[%clk 00:01:38]}
{[%emt 00:00:16]} Rxg4 {[%clk 00:04:21]} {[%emt 00:00:04]} 25. Ne1 {[%clk
00:01:25]} {[%emt 00:00:16]} cxb4 {[%clk 00:04:01]} {[%emt 00:00:23]} 26. axb4
{[%clk 00:01:25]} {[%emt 00:00:02]} a5 {[%clk 00:03:44]} {[%emt 00:00:20]} 27.
bxa5 {[%clk 00:01:04]} {[%emt 00:00:24]} bxa5 {[%clk 00:03:44]} {[%emt
00:00:02]} 28. Ne2 {[%clk 00:01:04]} {[%emt 00:00:02]} a4 {[%clk 00:03:44]}
{[%emt 00:00:03]} 29. Qf3 {[%clk 00:00:50]} {[%emt 00:00:17]} Rg6 {[%clk
00:03:36]} {[%emt 00:00:11]} 30. g3 {[%clk 00:00:43]} {[%emt 00:00:11]} Bg4
{[%clk 00:03:36]} {[%emt 00:00:01]} 31. Qf2 {[%clk 00:00:41]} {[%emt 00:00:05]}
Qb8 {[%clk 00:03:28]} {[%emt 00:00:11]} 32. gxf4 {[%clk 00:00:22]} {[%emt
00:00:22]} Bh6 {[%clk 00:03:28]} 33. Qe3 {[%clk 00:00:08]} {[%emt 00:00:18]}
exf4 {[%clk 00:03:23]} {[%emt 00:00:07]} 34. Qd3 {[%clk 00:00:08]} {[%emt
00:00:03]} Na6 {[%clk 00:03:06]} {[%emt 00:00:20]} 35. Rb1 {[%clk 00:00:08]}
{[%emt 00:00:02]} Qc8 {[%clk 00:03:03]} {[%emt 00:00:06]} 36. Kc2 {[%clk
00:00:08]} {[%emt 00:00:02]} Nc5 {[%clk 00:03:03]} {[%emt 00:00:02]} 37. Qa3
{[%clk 00:00:04]} {[%emt 00:00:07]} Bxe2 {[%emt 00:00:03]} 38. Rf2 Bxc4 {[%clk
00:03:02]} {[%emt 00:00:04]} 39. Bxf4 {[%clk 00:00:04]} {[%emt 00:00:01]} Bb3+
{[%clk 00:03:00]} {[%emt 00:00:04]} 40. Kb2 {[%clk 00:00:04]} {[%emt 00:00:03]}
Bxf4 {[%clk 00:02:59]} {[%emt 00:00:04]} 41. Rxf4 {[%clk 00:00:04]} Qc7 {[%clk
00:02:55]} {[%emt 00:00:07]} 42. Ka1 {[%clk 00:00:04]} {[%emt 00:00:01]} Rf8
{[%clk 00:02:51]} {[%emt 00:00:06]} 43. Rxf8+ {[%clk 00:00:04]} {[%emt
00:00:02]} Kxf8 {[%clk 00:02:51]} 44. e5 {[%clk 00:00:04]} {[%emt 00:00:01]}
Bxd5 {[%clk 00:02:44]} {[%emt 00:00:10]} 45. Rd1 {[%clk 00:00:04]} {[%emt
00:00:01]} Bb3 {[%clk 00:02:28]} {[%emt 00:00:19]} 46. Rc1 {[%clk 00:00:04]}
{[%emt 00:00:02]} Qg7 {[%clk 00:02:22]} {[%emt 00:00:08]} 47. Nf3 {[%clk
00:00:04]} {[%emt 00:00:01]} Rg2 {[%clk 00:02:22]} {[%emt 00:00:02]} 48. Qb4
{[%clk 00:00:04]} {[%emt 00:00:03]} Ra2+ {[%clk 00:02:22]} {[%emt 00:00:03]} 49.
Kb1 {[%clk 00:00:04]} {[%emt 00:00:01]} Qg6+ {[%clk 00:02:22]} 0-1

[Event "13 Open de Quenza"]
[Site "Quenza, France"]
[Date "2024.07.07"]
[Round "6.8"]
[White "Relange, Eloi"]
[Black "De Seroux, Camille"]
[Result "1-0"]
[TimeControl "5min+3s/move"]
[WhiteElo "2440"]
[BlackElo "2113"]

1. d4 {[%clk 00:05:03]} Nf6 {[%clk 00:05:03]} {[%emt 00:00:02]} 2. c4 {[%clk
00:05:03]} {[%emt 00:00:01]} Nc6 {[%clk 00:05:03]} {[%emt 00:00:02]} 3. Nf3
{[%clk 00:04:42]} {[%emt 00:00:24]} e6 {[%clk 00:05:03]} {[%emt 00:00:02]} 4.
a3 {[%clk 00:04:12]} {[%emt 00:00:34]} g6 {[%clk 00:05:02]} {[%emt 00:00:03]} 5.
g3 {[%clk 00:04:05]} {[%emt 00:00:10]} Bg7 {[%clk 00:05:02]} {[%emt 00:00:01]}
6. Bg2 {[%clk 00:04:05]} O-O {[%clk 00:05:02]} {[%emt 00:00:04]} 7. O-O {[%clk
00:04:05]} {[%emt 00:00:02]} d6 {[%clk 00:04:59]} {[%emt 00:00:06]} 8. Nc3
{[%clk 00:04:03]} {[%emt 00:00:05]} e5 {[%clk 00:04:43]} {[%emt 00:00:19]} 9.
dxe5 {[%clk 00:03:53]} {[%emt 00:00:14]} dxe5 {[%clk 00:04:43]} {[%emt
00:00:02]} 10. Qxd8 {[%clk 00:03:53]} {[%emt 00:00:03]} Rxd8 {[%clk 00:04:43]}
{[%emt 00:00:02]} 11. Bg5 {[%clk 00:03:53]} {[%emt 00:00:03]} Re8 {[%clk
00:04:06]} {[%emt 00:00:40]} 12. Nd5 {[%clk 00:03:23]} {[%emt 00:00:33]} Nxd5
{[%clk 00:03:55]} {[%emt 00:00:14]} 13. cxd5 {[%clk 00:03:23]} {[%emt
00:00:01]} Nd4 {[%clk 00:03:50]} {[%emt 00:00:08]} 14. Nxd4 {[%clk 00:02:42]}
{[%emt 00:00:44]} exd4 {[%clk 00:03:50]} {[%emt 00:00:02]} 15. Bf3 {[%clk
00:02:37]} {[%emt 00:00:07]} d3 {[%clk 00:03:24]} {[%emt 00:00:29]} 16. exd3
{[%clk 00:02:37]} {[%emt 00:00:04]} Bxb2 {[%clk 00:03:24]} {[%emt 00:00:03]} 17.
Ra2 {[%clk 00:02:37]} {[%emt 00:00:01]} Bd4 {[%clk 00:02:24]} {[%emt 00:01:02]}
18. Rc1 {[%clk 00:02:20]} {[%emt 00:00:21]} Bb6 {[%clk 00:02:13]} {[%emt
00:00:14]} 19. a4 {[%clk 00:02:20]} {[%emt 00:00:01]} a5 {[%clk 00:02:06]}
{[%emt 00:00:10]} 20. Rb2 {[%clk 00:02:11]} {[%emt 00:00:12]} Ra6 {[%clk
00:01:26]} {[%emt 00:00:43]} 21. Kg2 {[%clk 00:01:59]} {[%emt 00:00:15]} Bd4
{[%clk 00:01:10]} {[%emt 00:00:19]} 22. Rbc2 {[%clk 00:01:44]} {[%emt
00:00:18]} Be5 {[%clk 00:01:10]} {[%emt 00:00:02]} 23. Re1 {[%clk 00:01:42]}
{[%emt 00:00:04]} f6 {[%clk 00:00:52]} {[%emt 00:00:21]} 24. d4 {[%clk
00:01:05]} {[%emt 00:00:40]} fxg5 {[%clk 00:00:46]} {[%emt 00:00:09]} 25. dxe5
{[%clk 00:01:05]} {[%emt 00:00:02]} Bf5 {[%clk 00:00:45]} {[%emt 00:00:04]} 26.
Rxc7 {[%clk 00:01:05]} {[%emt 00:00:03]} g4 {[%clk 00:00:45]} {[%emt 00:00:03]}
27. Bd1 {[%clk 00:00:56]} {[%emt 00:00:12]} Rb6 {[%clk 00:00:45]} {[%emt
00:00:02]} 28. e6 {[%clk 00:00:49]} {[%emt 00:00:10]} Rb4 {[%clk 00:00:45]}
{[%emt 00:00:02]} 29. e7 {[%clk 00:00:36]} {[%emt 00:00:16]} Be4+ {[%clk
00:00:42]} {[%emt 00:00:06]} 30. Rxe4 {[%clk 00:00:31]} {[%emt 00:00:08]} Rxe4
{[%clk 00:00:42]} {[%emt 00:00:01]} 31. d6 {[%clk 00:00:31]} {[%emt 00:00:02]}
Rd4 {[%clk 00:00:39]} {[%emt 00:00:05]} 32. Bb3+ {[%clk 00:00:27]} {[%emt
00:00:07]} Kg7 {[%clk 00:00:39]} {[%emt 00:00:02]} 33. d7 {[%clk 00:00:23]}
{[%emt 00:00:07]} Rxe7 {[%clk 00:00:39]} {[%emt 00:00:03]} 34. d8=Q {[%clk
00:00:23]} {[%emt 00:00:02]} Rxd8 {[%clk 00:00:39]} {[%emt 00:00:01]} 35. Rxe7+
{[%clk 00:00:23]} {[%emt 00:00:01]} 1-0

[Event "13 Open de Quenza"]
[Site "Quenza, France"]
[Date "2024.07.07"]
[Round "6.9"]
[White "Glek, Igor"]
[Black "Ratier-Fontana, Matteo"]
[Result "1/2-1/2"]
[TimeControl "5min+3s/move"]
[WhiteElo "2396"]
[BlackElo "2153"]

1. e4 {[%clk 00:05:03]} {[%emt 00:13:02]} c5 {[%clk 00:04:55]} {[%emt
00:00:12]} 2. Nf3 {[%clk 00:05:03]} {[%emt 00:00:01]} d6 {[%clk 00:04:55]}
{[%emt 00:00:01]} 3. d4 {[%clk 00:05:03]} cxd4 {[%clk 00:04:55]} {[%emt
00:00:02]} 4. Nxd4 {[%clk 00:05:03]} {[%emt 00:00:01]} Nf6 {[%clk 00:04:55]} 5.
Nc3 {[%clk 00:05:03]} {[%emt 00:00:01]} a6 {[%clk 00:04:55]} {[%emt 00:00:01]}
6. a4 {[%clk 00:05:03]} e5 {[%clk 00:04:55]} {[%emt 00:00:02]} 7. Nf3 {[%clk
00:05:03]} {[%emt 00:00:01]} Be7 {[%clk 00:04:55]} 8. Bg5 {[%clk 00:05:03]}
{[%emt 00:00:02]} Be6 {[%clk 00:04:55]} {[%emt 00:00:02]} 9. Bxf6 {[%clk
00:05:03]} {[%emt 00:00:01]} Bxf6 {[%clk 00:04:55]} 10. Nd5 {[%clk 00:05:03]}
{[%emt 00:00:02]} Be7 {[%clk 00:04:46]} {[%emt 00:00:13]} 11. Bc4 {[%clk
00:04:54]} {[%emt 00:00:12]} Nd7 {[%clk 00:04:28]} {[%emt 00:00:21]} 12. O-O
{[%clk 00:04:51]} {[%emt 00:00:06]} Nf6 {[%clk 00:04:23]} {[%emt 00:00:09]} 13.
Nxf6+ {[%clk 00:04:33]} {[%emt 00:00:21]} Bxf6 {[%clk 00:04:20]} {[%emt
00:00:06]} 14. Bd5 {[%clk 00:04:33]} {[%emt 00:00:03]} Qc7 {[%clk 00:04:15]}
{[%emt 00:00:09]} 15. c3 {[%clk 00:04:33]} {[%emt 00:00:03]} O-O {[%clk
00:04:11]} {[%emt 00:00:06]} 16. Qb3 {[%clk 00:04:33]} {[%emt 00:00:03]} Bxd5
{[%clk 00:04:03]} {[%emt 00:00:12]} 17. Qxd5 {[%clk 00:04:33]} Be7 {[%clk
00:04:00]} {[%emt 00:00:06]} 18. Rfd1 {[%clk 00:04:25]} {[%emt 00:00:11]} Qc6
{[%clk 00:04:00]} {[%emt 00:00:03]} 19. a5 {[%clk 00:04:13]} {[%emt 00:00:15]}
Rac8 {[%clk 00:03:37]} {[%emt 00:00:26]} 20. Ne1 {[%clk 00:03:55]} {[%emt
00:00:20]} Qxd5 {[%clk 00:03:27]} {[%emt 00:00:13]} 21. Rxd5 {[%clk 00:03:55]}
{[%emt 00:00:02]} f5 {[%clk 00:03:27]} {[%emt 00:00:01]} 22. exf5 {[%clk
00:03:48]} {[%emt 00:00:10]} Rxf5 {[%clk 00:03:27]} {[%emt 00:00:02]} 23. Nc2
{[%clk 00:03:47]} {[%emt 00:00:04]} Kf7 {[%clk 00:03:18]} {[%emt 00:00:13]} 24.
Ne3 {[%clk 00:03:33]} {[%emt 00:00:17]} Rf6 {[%clk 00:03:04]} {[%emt 00:00:17]}
25. g3 {[%clk 00:03:25]} {[%emt 00:00:11]} Ke6 {[%clk 00:02:54]} {[%emt
00:00:13]} 26. Kg2 {[%clk 00:02:38]} {[%emt 00:00:50]} Rf7 {[%clk 00:02:47]}
{[%emt 00:00:10]} 27. h4 {[%clk 00:02:36]} {[%emt 00:00:04]} h5 {[%clk
00:02:28]} {[%emt 00:00:22]} 28. Rad1 {[%clk 00:00:55]} {[%emt 00:01:45]} Rc6
{[%clk 00:02:16]} {[%emt 00:00:16]} 29. Nc2 {[%clk 00:00:33]} {[%emt 00:00:24]}
Rc4 {[%clk 00:01:55]} {[%emt 00:00:23]} 30. Nb4 {[%clk 00:00:28]} {[%emt
00:00:08]} Rf8 {[%clk 00:01:34]} {[%emt 00:00:25]} 31. f3 {[%clk 00:00:27]}
{[%emt 00:00:03]} Rg8 {[%clk 00:01:22]} {[%emt 00:00:15]} 32. R5d3 {[%clk
00:00:10]} {[%emt 00:00:20]} g5 {[%clk 00:00:58]} {[%emt 00:00:27]} 33. hxg5
{[%clk 00:00:10]} {[%emt 00:00:02]} Rxg5 {[%clk 00:00:58]} {[%emt 00:00:01]} 34.
Kh3 {[%clk 00:00:09]} {[%emt 00:00:02]} Rg6 {[%clk 00:00:25]} {[%emt 00:00:36]}
35. Nd5 {[%clk 00:00:09]} {[%emt 00:00:03]} Rc6 {[%clk 00:00:19]} {[%emt
00:00:08]} 36. f4 {[%clk 00:00:09]} {[%emt 00:00:02]} Bd8 {[%clk 00:00:14]}
{[%emt 00:00:08]} 37. Re1 {[%clk 00:00:09]} {[%emt 00:00:03]} Rc5 {[%clk
00:00:10]} {[%emt 00:00:08]} 38. Ne3 {[%clk 00:00:09]} {[%emt 00:00:02]} exf4
{[%clk 00:00:10]} {[%emt 00:00:03]} 39. gxf4 {[%emt 00:00:03]} Kf7 {[%clk
00:00:10]} 40. Rd5 {[%clk 00:00:09]} {[%emt 00:00:01]} Bxa5 {[%clk 00:00:10]}
{[%emt 00:00:03]} 41. Rxc5 {[%clk 00:00:09]} {[%emt 00:00:02]} dxc5 {[%clk
00:00:10]} 42. Nc4 {[%clk 00:00:09]} Bc7 {[%clk 00:00:10]} {[%emt 00:00:02]} 43.
f5 {[%clk 00:00:09]} {[%emt 00:00:02]} Rg4 {[%clk 00:00:10]} 44. Ne5+ {[%clk
00:00:09]} {[%emt 00:00:03]} Bxe5 {[%clk 00:00:10]} {[%emt 00:00:01]} 45. Rxe5
{[%clk 00:00:09]} Rc4 {[%clk 00:00:09]} {[%emt 00:00:02]} 46. Rd5 {[%clk
00:00:09]} {[%emt 00:00:04]} Kf6 {[%clk 00:00:09]} {[%emt 00:00:01]} 47. Rd7
{[%clk 00:00:08]} {[%emt 00:00:04]} b5 {[%clk 00:00:09]} {[%emt 00:00:02]} 48.
Rd6+ {[%clk 00:00:08]} {[%emt 00:00:03]} Kxf5 {[%clk 00:00:09]} 49. Rxa6 {[%clk
00:00:08]} b4 {[%clk 00:00:09]} {[%emt 00:00:02]} 50. cxb4 {[%clk 00:00:08]}
{[%emt 00:00:03]} Rxb4 {[%clk 00:00:09]} {[%emt 00:00:01]} 51. Ra5 {[%clk
00:00:08]} Rc4 {[%clk 00:00:05]} {[%emt 00:00:08]} 52. b3 {[%clk 00:00:08]} Rc1
{[%clk 00:00:05]} {[%emt 00:00:02]} 53. b4 {[%clk 00:00:08]} {[%emt 00:00:01]}
Kf4 {[%clk 00:00:05]} {[%emt 00:00:02]} 54. Rxc5 {[%clk 00:00:08]} Rxc5 {[%clk
00:00:04]} {[%emt 00:00:03]} 55. bxc5 {[%clk 00:00:08]} Ke5 {[%clk 00:00:04]}
56. Kh4 {[%clk 00:00:08]} Kd5 {[%clk 00:00:04]} 57. Kxh5 {[%emt 00:00:01]} Kxc5
{[%emt 00:00:02]} 1/2-1/2

[Event "13 Open de Quenza"]
[Site "Quenza, France"]
[Date "2024.07.07"]
[Round "6.10"]
[White "Yankelevich, Lev"]
[Black "Geronimi, Jean-Thomas"]
[Result "1/2-1/2"]
[TimeControl "5min+3s/move"]
[WhiteElo "2416"]
[BlackElo "2065"]

1. d4 {[%clk 00:05:03]} f5 {[%clk 00:05:03]} {[%emt 00:00:01]} 2. Bg5 {[%clk
00:05:03]} {[%emt 00:00:01]} g6 {[%clk 00:05:03]} {[%emt 00:00:01]} 3. Nc3
{[%clk 00:05:03]} {[%emt 00:00:02]} Bg7 {[%clk 00:05:03]} 4. e3 {[%clk
00:04:56]} {[%emt 00:00:11]} d5 {[%clk 00:05:03]} 5. h4 {[%clk 00:04:56]}
{[%emt 00:00:02]} c6 {[%clk 00:04:36]} {[%emt 00:00:31]} 6. Nf3 {[%clk
00:04:53]} {[%emt 00:00:06]} Nh6 {[%clk 00:04:00]} {[%emt 00:00:39]} 7. Bf4
{[%clk 00:04:34]} {[%emt 00:00:23]} Nf7 {[%clk 00:03:57]} {[%emt 00:00:06]} 8.
h5 {[%clk 00:04:34]} {[%emt 00:00:01]} Nd7 {[%clk 00:03:42]} {[%emt 00:00:18]}
9. hxg6 {[%clk 00:04:12]} {[%emt 00:00:25]} hxg6 {[%clk 00:03:42]} 10. Rxh8+
{[%clk 00:04:12]} {[%emt 00:00:02]} Bxh8 {[%clk 00:03:42]} {[%emt 00:00:01]} 11.
Qd2 {[%clk 00:03:48]} {[%emt 00:00:27]} Nf6 {[%clk 00:03:38]} {[%emt 00:00:07]}
12. Ne5 {[%clk 00:03:39]} {[%emt 00:00:12]} Nxe5 {[%clk 00:03:29]} {[%emt
00:00:12]} 13. Bxe5 {[%clk 00:03:26]} {[%emt 00:00:16]} Be6 {[%clk 00:02:47]}
{[%emt 00:00:46]} 14. f3 {[%clk 00:03:22]} {[%emt 00:00:07]} b5 {[%clk
00:02:23]} {[%emt 00:00:27]} 15. a4 {[%clk 00:03:10]} {[%emt 00:00:15]} b4
{[%clk 00:02:20]} {[%emt 00:00:06]} 16. Na2 {[%clk 00:03:10]} {[%emt 00:00:02]}
a5 {[%clk 00:02:20]} {[%emt 00:00:02]} 17. Nc1 {[%clk 00:03:10]} {[%emt
00:00:01]} Kf7 {[%clk 00:02:03]} {[%emt 00:00:20]} 18. Nd3 {[%clk 00:03:10]}
{[%emt 00:00:03]} Nd7 {[%clk 00:02:03]} {[%emt 00:00:02]} 19. Bg3 {[%clk
00:02:15]} {[%emt 00:00:58]} Qb6 {[%clk 00:01:58]} {[%emt 00:00:08]} 20. Nf4
{[%clk 00:02:06]} {[%emt 00:00:12]} c5 {[%clk 00:01:42]} {[%emt 00:00:20]} 21.
Nxe6 {[%clk 00:02:06]} {[%emt 00:00:01]} Qxe6 {[%clk 00:01:36]} {[%emt
00:00:09]} 22. c3 {[%clk 00:02:06]} {[%emt 00:00:02]} cxd4 {[%clk 00:01:18]}
{[%emt 00:00:21]} 23. cxd4 {[%clk 00:02:06]} {[%emt 00:00:02]} Rc8 {[%clk
00:01:18]} 24. Kf2 {[%clk 00:01:55]} {[%emt 00:00:14]} Nb6 {[%clk 00:00:58]}
{[%emt 00:00:23]} 25. Bd3 {[%clk 00:01:49]} {[%emt 00:00:09]} Nc4 {[%clk
00:00:57]} {[%emt 00:00:04]} 26. Qe2 {[%clk 00:01:49]} g5 {[%clk 00:00:51]}
{[%emt 00:00:09]} 27. f4 {[%clk 00:01:36]} {[%emt 00:00:16]} g4 {[%clk
00:00:42]} {[%emt 00:00:12]} 28. Rh1 {[%clk 00:01:33]} {[%emt 00:00:06]} Nd6
{[%clk 00:00:26]} {[%emt 00:00:20]} 29. Qd2 {[%clk 00:01:09]} {[%emt 00:00:27]}
Ne4+ {[%clk 00:00:19]} {[%emt 00:00:10]} 30. Bxe4 {[%clk 00:01:09]} {[%emt
00:00:01]} Qxe4 {[%clk 00:00:19]} 31. Rc1 {[%clk 00:01:09]} {[%emt 00:00:01]}
Rxc1 {[%clk 00:00:19]} {[%emt 00:00:03]} 32. Qxc1 {[%clk 00:01:09]} {[%emt
00:00:01]} b3 {[%clk 00:00:19]} 33. Qd2 {[%clk 00:00:56]} {[%emt 00:00:16]} Qc2
{[%clk 00:00:19]} {[%emt 00:00:01]} 34. Ke2 {[%clk 00:00:56]} Qe4 {[%clk
00:00:19]} {[%emt 00:00:01]} 35. Kf1 {[%clk 00:00:54]} {[%emt 00:00:04]} Qc2
{[%clk 00:00:19]} {[%emt 00:00:02]} 36. Be1 {[%clk 00:00:54]} {[%emt 00:00:03]}
Qb1 {[%clk 00:00:10]} {[%emt 00:00:11]} 37. Qc3 {[%clk 00:00:50]} {[%emt
00:00:07]} Qd1 {[%clk 00:00:10]} {[%emt 00:00:02]} 38. Qd2 {[%clk 00:00:37]}
{[%emt 00:00:17]} Qb1 {[%clk 00:00:10]} {[%emt 00:00:02]} 39. Qe2 {[%clk
00:00:36]} {[%emt 00:00:03]} Bf6 {[%emt 00:00:04]} 40. g3 {[%clk 00:00:35]}
{[%emt 00:00:04]} Qe4 {[%clk 00:00:10]} 41. Kf2 {[%clk 00:00:29]} {[%emt
00:00:08]} Qh1 {[%clk 00:00:10]} {[%emt 00:00:02]} 42. Qf1 {[%clk 00:00:29]}
{[%emt 00:00:01]} Qf3+ {[%clk 00:00:10]} {[%emt 00:00:03]} 43. Kg1 {[%emt
00:00:03]} Qxe3+ {[%clk 00:00:10]} 44. Bf2 {[%clk 00:00:26]} {[%emt 00:00:06]}
Qd2 {[%clk 00:00:10]} 45. Qb5 {[%clk 00:00:24]} {[%emt 00:00:05]} Qd1+ {[%clk
00:00:09]} {[%emt 00:00:04]} 46. Qf1 {[%clk 00:00:21]} {[%emt 00:00:06]} Qxf1+
{[%clk 00:00:09]} {[%emt 00:00:03]} 47. Kxf1 {[%clk 00:00:21]} Ke6 {[%clk
00:00:09]} 48. Ke2 {[%clk 00:00:21]} {[%emt 00:00:01]} Kd7 {[%clk 00:00:09]} 49.
Kd3 {[%clk 00:00:21]} {[%emt 00:00:02]} Kc6 {[%clk 00:00:09]} 50. Kc3 {[%clk
00:00:21]} {[%emt 00:00:02]} Kb6 {[%clk 00:00:09]} {[%emt 00:00:02]} 51. Kxb3
e6 52. Kc3 {[%clk 00:00:21]} {[%emt 00:00:04]} Be7 {[%clk 00:00:09]} 53. Kd3
{[%clk 00:00:21]} {[%emt 00:00:02]} Bb4 {[%clk 00:00:09]} {[%emt 00:00:02]} 54.
b3 {[%clk 00:00:21]} {[%emt 00:00:02]} Be7 {[%clk 00:00:09]} {[%emt 00:00:01]}
55. Be3 {[%clk 00:00:21]} {[%emt 00:00:02]} Bb4 {[%clk 00:00:09]} {[%emt
00:00:01]} 56. Bd2 {[%clk 00:00:21]} {[%emt 00:00:01]} Be7 {[%clk 00:00:09]} 57.
Bc3 {[%clk 00:00:21]} {[%emt 00:00:04]} Bf8 {[%clk 00:00:09]} 58. Kc2 {[%clk
00:00:21]} {[%emt 00:00:02]} Be7 {[%clk 00:00:09]} 59. Bd2 {[%clk 00:00:21]}
{[%emt 00:00:03]} Bf8 {[%clk 00:00:09]} 60. Kb2 {[%clk 00:00:21]} {[%emt
00:00:01]} Be7 {[%clk 00:00:09]} 61. Bc3 {[%clk 00:00:18]} {[%emt 00:00:07]}
Bf8 {[%clk 00:00:09]} 62. Kc2 {[%emt 00:00:02]} Be7 63. Kd3 {[%clk 00:00:16]}
{[%emt 00:00:06]} Bf8 {[%clk 00:00:09]} 64. Be1 {[%clk 00:00:16]} {[%emt
00:00:03]} Be7 {[%clk 00:00:09]} {[%emt 00:00:01]} 65. Bd2 {[%clk 00:00:16]}
Bf8 {[%clk 00:00:09]} 66. Be1 {[%clk 00:00:16]} Be7 {[%clk 00:00:09]} 67. Bd2
{[%clk 00:00:16]} {[%emt 00:00:03]} Bf8 {[%clk 00:00:09]} 68. Be1 {[%clk
00:00:16]} 1/2-1/2